Workbook

Sheet ~#temp (hidden)

Sheet Calc Sheet (1)
C3: Design Loads
F4: (All loads acting at U/S of base plate)
C5: T#= | D5: 0.33 | E5: kN | F5: ULS tension
C6: N#= | D6: 22.92 | E6: kN | F6: ULS compression
C7: H#= | D7: 16.03 | E7: kN | F7: ULS lateral load (shear)
C8: M#= | D8: 23.15 | E8: kNm | F8: ULS bending moment
C11: Pier Geometry
C13: D = | D13: 450 | E13: mm | F13: Diameter fo pile
C14: Lp = | D14: 2 | E14: m | F14: Length of pile
C15: ebp = | D15: 1 | E15: m | F15: Projection of pier above ground
C18: Concrete Properties
C20: cover= | D20: 75 | E20: mm | F20: Cover to shear ligs
C21: ds = | D21: 6 | E21: mm | F21: Shear lig diameter
C22: db = | D22: 20 | E22: mm | F22: Bending reo diamter
C23: nbars = | D23: 8 | F23: # bending bars
C24: f'c= | D24: 40 | E24: MPa | F24: Concrete strength
C25: εc = | D25: 0.003 | F25: Concrete strain
C26: fsy = | D26: 500 | E26: MPa | F26: Steel yield strength
C27: Es = | D27: 200000 | E27: MPa | F27: Young's Mod. Steel
C28: εs = | D28: 0.025 | F28: Steel strain
C29: γc = | D29: 24 | E29: kN/m³ | F29: Concrete unit weight
C36: Soil Propoerties
C38: cu = | D38: 75 | E38: kPa
C39: qu = | D39: 0 | E39: kPa
C40: αcu = | D40: 0.7
C41: ϕg = | D41: 0.6
C44: Concrete Bending Capacity
A46: Dist. Between bars | C46: d = | D46: =D13-2*D20-2*D21-D22 -> 268 | E46: =[1]!EQS(D46,"Units= mm; EqnPrefix=Eqn. ; EqnNo= 35; Multiplication= 1; ShowWorking= 0; EqnStyle= 1; Eqp$E$46_0") -> 
G48: =[1]!EQS(D46,"Units= ; EqnPrefix=Eqn. ; EqnNo= 35; Multiplication= 0; ShowWorking= 1; EqnStyle= 1; Eqp$G$48_0") -> 
A50: From C&CCA HB71 | C50: gratio = | D50: =D46/D13 -> 0.5955555556 | E50: =[1]!EQS(D50,"Units= ; EqnPrefix=Eqn. ; EqnNo= 35; Multiplication= 0; ShowWorking= 0; EqnStyle= 1; Eqp$E$50_0") ->  | G50: =[1]!EQS(D50,"Units= ; EqnPrefix=Eqn. ; EqnNo= 35; Multiplication= 0; ShowWorking= 1; EqnStyle= 1; Eqp$G$50_0") -> 
A52: Area of rebar | C52: Ab = | D52: =[1]!OVD(PI())/[1]!UND(4)*D22^2 -> 314.1592654 | E52: =[1]!EQS(D52,"Units= mm2; EqnPrefix=Eqn. ; EqnNo= 35; Multiplication= 0; ShowWorking= 0; EqnStyle= 1; Eqp$E$52_0") ->  | G52: =[1]!EQS(D52,"Units= ; EqnPrefix=Eqn. ; EqnNo= 35; Multiplication= 1; ShowWorking= 1; EqnStyle= 1; Eqp$G$52_0") -> 
A54: Total steel area | C54: As = | D54: =D23*D52 -> 2513.274123 | E54: =[1]!EQS(D54,"Units= mm2; EqnPrefix=Eqn. ; EqnNo= 35; Multiplication= 0; ShowWorking= 0; EqnStyle= 1; Eqp$E$54_0") ->  | G54: =[1]!EQS(D54,"Units= ; EqnPrefix=Eqn. ; EqnNo= 35; Multiplication= 1; ShowWorking= 1; EqnStyle= 1; Eqp$G$54_0") -> 
A56: Gross X-section area | C56: Ag = | D56: =[1]!OVD(PI())/[1]!UND(4)*D13^2 -> 159043.1281 | E56: =[1]!EQS(D56,"Units= mm2; EqnPrefix=Eqn. ; EqnNo= 35; Multiplication= 0; ShowWorking= 0; EqnStyle= 1; Eqp$E$56_0") ->  | G56: =[1]!EQS(D56,"Units= ; EqnPrefix=Eqn. ; EqnNo= 35; Multiplication= 1; ShowWorking= 1; EqnStyle= 1; Eqp$G$56_0") -> 
A58: Steel ratio | C58: pratio = | D58: =D54/D56 -> 0.01580246914 | E58: =[1]!EQS(D58,"Units= ; EqnPrefix=Eqn. ; EqnNo= 35; Multiplication= 0; ShowWorking= 0; EqnStyle= 1; Eqp$E$58_0") ->  | G58: =[1]!EQS(D58,"Units= ; EqnPrefix=Eqn. ; EqnNo= 35; Multiplication= 1; ShowWorking= 1; EqnStyle= 1; Eqp$G$58_0") -> 
C61: Calculate values for rectangular stress block design model:
C62: (refer AS 3600, Clause 8.1.3)
C64: α2 = | D64: =1-0.003*D24 -> 0.88 | E64: =[1]!EQS(D64,"Units= ; EqnPrefix=Eqn. ; EqnNo= 35; Multiplication= 0; ShowWorking= 0; EqnStyle= 1; Eqp$E$64_0") ->  | G64: =[1]!EQS(D64,"Units= ; EqnPrefix=Eqn. ; EqnNo= 35; Multiplication= 1; ShowWorking= 1; EqnStyle= 1; Eqp$G$64_0") -> 
C65: Check: | D65: 0.67≤α2≤0.85
C66: α2 = | D66: =MAX(0.67,MIN(D64,0.85)) -> 0.85 | E66: =[1]!EQS(D66,"Units= ; EqnPrefix=Eqn. ; EqnNo= 35; Multiplication= 0; ShowWorking= 0; EqnStyle= 1; Eqp$E$66_0") -> 
C68: γ2 = | D68: =1.05-0.007*D24 -> 0.77 | E68: =[1]!EQS(D68,"Units= ; EqnPrefix=Eqn. ; EqnNo= 35; Multiplication= 0; ShowWorking= 0; EqnStyle= 1; Eqp$E$68_0") ->  | G68: =[1]!EQS(D68,"Units= ; EqnPrefix=Eqn. ; EqnNo= 35; Multiplication= 1; ShowWorking= 1; EqnStyle= 1; Eqp$G$68_0") -> 
C69: Check: | D69: 0.67≤α2≤0.85
C70: γ2 = | D70: =MAX(0.67,MIN(D68,0.85)) -> 0.77 | E70: =[1]!EQS(D70,"Units= ; EqnPrefix=Eqn. ; EqnNo= 35; Multiplication= 0; ShowWorking= 0; EqnStyle= 1; Eqp$E$70_0") -> 
C75: Muo = | D75: 166.9 | E75: kNm
C76: ϕbending = | D76: 0.8
C77: ϕMuo= | D77: =D76*D75 -> 133.52
B81: Geotechnical Strength
C82: Vertical Load (compression)
C84: N#= | D84: =D6 -> 22.92 | E84: =[1]!EQS(D84,"Units= kN; EqnPrefix=Eqn. ; EqnNo= 35; Multiplication= 0; ShowWorking= 0; EqnStyle= 1; Eqp$E$84_0") ->  | G84: (defined previusly)
C86: LP.eff = | D86: =D14-1.5*[1]!OVD(D13)/[1]!UND(1000) -> 1.325 | E86: =[1]!EQS(D86,"Units= m; EqnPrefix=Eqn. ; EqnNo= 35; Multiplication= 0; ShowWorking= 0; EqnStyle= 1; Eqp$E$86_0") ->  | G86: =[1]!EQS(D86,"Units= ; EqnPrefix=Eqn. ; EqnNo= 35; Multiplication= 1; ShowWorking= 1; EqnStyle= 1; Eqp$G$86_0") -> 
C88: fs = | D88: =D40*D38 -> 52.5 | E88: =[1]!EQS(D88,"Units= kPa; EqnPrefix=Eqn. ; EqnNo= 35; Multiplication= 0; ShowWorking= 0; EqnStyle= 1; Eqp$E$88_0") ->  | G88: =[1]!EQS(D88,"Units= ; EqnPrefix=Eqn. ; EqnNo= 35; Multiplication= 1; ShowWorking= 1; EqnStyle= 1; Eqp$G$88_0") -> 
C90: fb = | D90: =D39 -> 0 | E90: =[1]!EQS(D90,"Units= kPa; EqnPrefix=Eqn. ; EqnNo= 35; Multiplication= 0; ShowWorking= 0; EqnStyle= 1; Eqp$E$90_0") ->  | G90: (ULS base bearing)
C92: Aps = | D92: =PI()*[1]!OVD(D13)/[1]!UND(1000)*D86 -> 1.87317462 | E92: =[1]!EQS(D92,"Units= m2; EqnPrefix=Eqn. ; EqnNo= 35; Multiplication= 0; ShowWorking= 0; EqnStyle= 1; Eqp$E$92_0") ->  | G92: =[1]!EQS(D92,"Units= ; EqnPrefix=Eqn. ; EqnNo= 35; Multiplication= 1; ShowWorking= 1; EqnStyle= 1; Eqp$G$92_0") -> 
C94: Apb = | D94: =D56*10^-6 -> 0.1590431281 | E94: =[1]!EQS(D94,"Units= m2; EqnPrefix=Eqn. ; EqnNo= 35; Multiplication= 0; ShowWorking= 0; EqnStyle= 1; Eqp$E$94_0") ->  | G94: (base area)
C96: Rug.c = | D96: =D90*D94+D88*D92 -> 98.34166753 | E96: =[1]!EQS(D96,"Units= kN; EqnPrefix=Eqn. ; EqnNo= 35; Multiplication= 0; ShowWorking= 0; EqnStyle= 1; Eqp$E$96_0") ->  | G96: =[1]!EQS(D96,"Units= ; EqnPrefix=Eqn. ; EqnNo= 35; Multiplication= 1; ShowWorking= 1; EqnStyle= 1; Eqp$G$96_0") -> 
C98: ϕg = | D98: 0.6 | G98: Geotech strength reduction fact.
C100: ϕRug.c= | D100: =D98*D96 -> 59.00500052 | E100: =[1]!EQS(D100,"Units= kN; EqnPrefix=Eqn. ; EqnNo= 35; Multiplication= 0; ShowWorking= 0; EqnStyle= 1; Eqp$E$100_0") ->  | G100: =[1]!EQS(D100,"Units= ; EqnPrefix=Eqn. ; EqnNo= 35; Multiplication= 1; ShowWorking= 1; EqnStyle= 1; Eqp$G$100_0") -> 
C102: LFcomp= | D102: =[1]!OVD(D100)/[1]!UND(D6) -> 2.574389202 | E102: =[1]!EQS(D102,"Units= ; EqnPrefix=Eqn. ; EqnNo= 35; Multiplication= 0; ShowWorking= 0; EqnStyle= 1; Eqp$E$102_0") ->  | G102: =[1]!EQS(D102,"Units= ; EqnPrefix=Eqn. ; EqnNo= 35; Multiplication= 1; ShowWorking= 1; EqnStyle= 1; Eqp$G$102_0") -> 
C104: Checkcomp= | D104: =IF(D102>1,"Pass","Fail") -> Pass
C105: Vertical Load (tension)
C107: T#= | D107: =D5 -> 0.33 | E107: =[1]!EQS(D107,"Units= kN; EqnPrefix=Eqn. ; EqnNo= 35; Multiplication= 0; ShowWorking= 0; EqnStyle= 1; Eqp$E$107_0") ->  | G107: (defined previusly)
C109: Wp = | D109: =(D15+D14)*D29*D56*10^-6 -> 11.45110522 | E109: =[1]!EQS(D109,"Units= kN; EqnPrefix=Eqn. ; EqnNo= 35; Multiplication= 0; ShowWorking= 0; EqnStyle= 1; Eqp$E$109_0") -> 
G110: =[1]!EQS(D109,"Units= ; EqnPrefix=Eqn. ; EqnNo= 35; Multiplication= 1; ShowWorking= 1; EqnStyle= 1; Eqp$G$110_0") -> 
C112: Rug.t= | D112: =D109+D88*D92 -> 109.7927728 | E112: =[1]!EQS(D112,"Units= kN; EqnPrefix=Eqn. ; EqnNo= 35; Multiplication= 0; ShowWorking= 0; EqnStyle= 1; Eqp$E$112_0") ->  | G112: =[1]!EQS(D112,"Units= ; EqnPrefix=Eqn. ; EqnNo= 35; Multiplication= 1; ShowWorking= 1; EqnStyle= 1; Eqp$G$112_0") -> 
C114: ϕRug.t= | D114: =D98*D112 -> 65.87566365 | E114: =[1]!EQS(D114,"Units= kN; EqnPrefix=Eqn. ; EqnNo= 35; Multiplication= 0; ShowWorking= 0; EqnStyle= 1; Eqp$E$114_0") ->  | G114: =[1]!EQS(D114,"Units= ; EqnPrefix=Eqn. ; EqnNo= 35; Multiplication= 1; ShowWorking= 1; EqnStyle= 1; Eqp$G$114_0") -> 
C116: LFtens= | D116: =[1]!OVD(D114)/[1]!UND(D107) -> 199.6232232 | E116: =[1]!EQS(D116,"Units= ; EqnPrefix=Eqn. ; EqnNo= 35; Multiplication= 0; ShowWorking= 0; EqnStyle= 1; Eqp$E$116_0") ->  | G116: =[1]!EQS(D116,"Units= ; EqnPrefix=Eqn. ; EqnNo= 35; Multiplication= 1; ShowWorking= 1; EqnStyle= 1; Eqp$G$116_0") -> 
C118: Checktens= | D118: =IF(D116>1,"Pass","Fail") -> Pass
C122: Lateral Load / Moment
C124: ep = | D124: =D15+D8/D7 -> 2.444167187 | E124: =[1]!EQS(D124,"Units= m; EqnPrefix=Eqn. ; EqnNo= 35; Multiplication= 0; ShowWorking= 0; EqnStyle= 1; Eqp$E$124_0") -> 
C126: D = | D126: =D13/1000 -> 0.45 | E126: =[1]!EQS(D126,"Units= m; EqnPrefix=Eqn. ; EqnNo= 35; Multiplication= 0; ShowWorking= 0; EqnStyle= 1; Eqp$E$126_0") ->  | K126: FROM MATHCAD:
C128: λL = | D128: =9*(-([1]!OVD(D124)/[1]!UND(D126)+1.5)+ SQRT(([1]!OVD(D124)/[1]!UND(D126)+1.5)^2 + [1]!OVD(2*D75)/[1]!UND(9*D38*D126^3))) -> 3.428916461 | E128: =[1]!EQS(D128,"Units= ; EqnPrefix=Eqn. ; EqnNo= 35; Multiplication= 0; ShowWorking= 0; EqnStyle= 1; Eqp$E$128_0") -> 
D132: =[1]!EQS(D128,"Units= ; EqnPrefix=Eqn. ; EqnNo= 35; Multiplication= 1; ShowWorking= 1; EqnStyle= 1; Eqp$D$132_0") -> 
C138: ap = | D138: 0.5
C140: bp = | D140: =9*([1]!OVD(D14)/[1]!UND(D126)-1.5)+18*([1]!OVD(D124)/[1]!UND(D126)+1.5) -> 151.2666875 | E140: =[1]!EQS(D140,"Units= ; EqnPrefix=Eqn. ; EqnNo= 35; Multiplication= 0; ShowWorking= 0; EqnStyle= 1; Eqp$E$140_0") -> 
E142: =[1]!EQS(D140,"Units= ; EqnPrefix=Eqn. ; EqnNo= 35; Multiplication= 1; ShowWorking= 1; EqnStyle= 1; Eqp$E$142_0") -> 
C144: cp = | D144: =-0.5*(9*([1]!OVD(D14)/[1]!UND(D126)-1.5))^2 -> -351.125 | E144: =[1]!EQS(D144,"Units= ; EqnPrefix=Eqn. ; EqnNo= 35; Multiplication= 0; ShowWorking= 0; EqnStyle= 1; Eqp$E$144_0") -> 
E146: =[1]!EQS(D144,"Units= ; EqnPrefix=Eqn. ; EqnNo= 35; Multiplication= 1; ShowWorking= 1; EqnStyle= 1; Eqp$E$146_0") -> 
C148: λS = | D148: =[1]!OVD(-D140+SQRT(D140^2-4*D138*D144))/[1]!UND(2*D138) -> 2.303689681 | E148: =[1]!EQS(D148,"Units= ; EqnPrefix=Eqn. ; EqnNo= 35; Multiplication= 0; ShowWorking= 0; EqnStyle= 1; Eqp$E$148_0") -> 
E150: =[1]!EQS(D148,"Units= ; EqnPrefix=Eqn. ; EqnNo= 35; Multiplication= 1; ShowWorking= 1; EqnStyle= 1; Eqp$E$150_0") -> 
C169: The strength reduction factor for a short pier will be based on the strength reduction factor provided by the user at the start of the calculation, however the strength reduction factor for a long pier will be taken as 0.75 since the capacity is largely governed by bending of the pier (Woolcock et al, 2003, Chapter 7.4.1).
C172: ϕS = | D172: =D41 -> 0.6 | E172: =[1]!EQS(D172,"Units= ; EqnPrefix=Eqn. ; EqnNo= 35; Multiplication= 0; ShowWorking= 0; EqnStyle= 1; Eqp$E$172_0") ->  | G172: (defined previusly)
C174: ϕL = | D174: 0.75
C176: ϕHS= | D176: =D172*D148*D38*D126^2 -> 20.99237221 | E176: =[1]!EQS(D176,"Units= kN; EqnPrefix=Eqn. ; EqnNo= 35; Multiplication= 0; ShowWorking= 0; EqnStyle= 1; Eqp$E$176_0") ->  | G176: =[1]!EQS(D176,"Units= ; EqnPrefix=Eqn. ; EqnNo= 35; Multiplication= 1; ShowWorking= 1; EqnStyle= 1; Eqp$G$176_0") -> 
C178: ϕHL= | D178: =D174*D128*D38*D126^2 -> 39.05750156 | E178: =[1]!EQS(D178,"Units= kN; EqnPrefix=Eqn. ; EqnNo= 35; Multiplication= 0; ShowWorking= 0; EqnStyle= 1; Eqp$E$178_0") ->  | G178: =[1]!EQS(D178,"Units= ; EqnPrefix=Eqn. ; EqnNo= 35; Multiplication= 1; ShowWorking= 1; EqnStyle= 1; Eqp$G$178_0") -> 
C180: piertype= | D180: =IF(D176<D178,"Short","Long") -> Short | E180: =[1]!EQS(D180,"Units= ; EqnPrefix=Eqn. ; EqnNo= 35; Multiplication= 0; ShowWorking= 0; EqnStyle= 1; Eqp$E$180_0") -> 
C182: ϕHug= | D182: =MIN(D176,D178) -> 20.99237221 | E182: =[1]!EQS(D182,"Units= kN; EqnPrefix=Eqn. ; EqnNo= 35; Multiplication= 0; ShowWorking= 0; EqnStyle= 1; Eqp$E$182_0") -> 
C184: LFlat= | D184: =[1]!OVD(D182)/[1]!UND(D7) -> 1.309567824 | E184: =[1]!EQS(D184,"Units= ; EqnPrefix=Eqn. ; EqnNo= 35; Multiplication= 0; ShowWorking= 0; EqnStyle= 1; Eqp$E$184_0") -> 
C186: Checklat= | D186: =IF(D184>1,"Pass","Fail") -> Pass

Sheet Sheet2

Sheet Sheet3
